Workbook

Sheet 控制价
A1: 滨湖人文项目看房接待、开盘、职工推荐会服务控制价
A2: 一、看房接待活动
A3: 序号 | B3: 类目 | C3: 规格 | D3: 数量 | E3: 单位 | F3: 单价 | G3: 总价 | H3: 单价 | I3: 总价 | J3: 备注
A4: 1 | B4: 短信系统 | C4: 发送通知短信 | D4: 80000 | E4: 条 | F4: 0.08 | G4: =F4*D4 -> 6,400
A5: 2 | B5: 贵宾椅 | C5: 租（1-3天） | D5: 80 | E5: 把 | F5: 15 | G5: =F5*D5 -> 1,200
A6: 3 | B6: 便携式扩音器 | C6: 采购，可重复利用 | D6: 6 | E6: 个 | F6: 140 | G6: 840
A7: 4 | B7: 消毒湿巾 | C7: 清风 | D7: 800 | E7: 片 | F7: 0.3 | G7: 240
A8: 5 | B8: 岗亭伞 | C8: 3m圆形 | D8: 1 | E8: 个 | F8: 3500 | G8: 3,500
A9: 6 | B9: 体温枪 | C9: / | D9: 4 | E9: 个 | F9: 70 | G9: 280
A10: 7 | B10: 鸟瞰图灯箱 | C10: 1.7*1.8m | D10: 1 | E10: 个 | F10: =1.7*1.8*500 -> 1530 | G10: 1,530
A11: 8 | B11: 区位图灯箱 | C11: 1.75*1.8m | D11: 1 | E11: 个 | F11: =1.75*1.8*500 -> 1575 | G11: 1,575
A12: 9 | B12: 信息公示栏 | C12: 1.7*1.75m(含亚克力盒） | D12: 3 | E12: ㎡ | F12: 800 | G12: 2,400
A13: 10 | B13: 国产灯布 | C13: 高精度530喷绘 | D13: 400 | E13: ㎡ | F13: 25 | G13: 10,000 | H13: 7,500
A14: 11 | B14: 仿真草皮 | C14: 厚20mm | D14: 40 | E14: ㎡ | F14: 23.5 | G14: 940
A15: 12 | B15: 玻璃贴膜 | C15: 磨砂 | D15: 200 | E15: ㎡ | F15: 38 | G15: 7,600
A16: 13 | B16: pvc字 | C16: 厚度15mm | D16: 6000 | E16: cm | F16: 1.8 | G16: 10,800
A17: 14 | B17: 户型臂贴 | C17: 8公分不干胶，裁圆 | D17: 5000 | E17: 张 | F17: 1 | G17: 5,000
A18: 15 | B18: 德国大棚 | C18: 铝合金、钢支架、双面PVC涂层布顶棚和外围结构、PVC采光窗户租（1-3天） | D18: 50 | E18: ㎡ | F18: 80 | G18: 4,000
A19: 16 | B19: 矿泉水 | C19: 怡宝 | D19: 500 | E19: 瓶 | F19: 2 | G19: 1,000
A20: 17 | B20: 立屏展架 | C20: 常规 | D20: 4 | E20: 套 | F20: 330 | G20: 1,320
A21: 18 | B21: 交标牌 | C21: pvc | D21: 3 | E21: 块 | F21: 150 | G21: 450
A22: 19 | B22: 地毯 | C22: 灰色 | D22: 400 | E22: ㎡ | F22: 20 | G22: 8,000
A23: 20 | B23: 签到桌 | C23: 0.45*1.5M以上,含桌布 | D23: 2 | E23: 张 | F23: 120 | G23: 240
A24: 21 | B24: 客服人员 | C24: 10天 | D24: 2 | E24: 人 | F24: 3000 | G24: 6,000
A25: 22 | B25: 秩序保安 | C25: 10天 | D25: 2 | E25: 人 | F25: 3000 | G25: 6,000
A26: 23 | B26: 保洁阿姨 | C26: 10天 | D26: 2 | E26: 人 | F26: 3000 | G26: 6,000
A27: 小计： | G27: =SUM(G4:G26) -> 85,315 | I27: =SUM(I3:I23) -> 0
A28: 税率 | F28: 6% | G28: =G27*0.06 -> 5,119
A29: 合计 | G29: =G27+G28 -> 90,434
A30: 二、开盘活动（签约布场）
A31: 序号 | B31: 类目 | C31: 规格 | D31: 数量 | E31: 单位 | F31: 单价 | G31: 总价 | H31: 单价 | I31: 总价 | J31: 备注
A32: 1 | B32: 会议厅 | C32: 200-300平方 | D32: 4 | E32: 天 | F32: 12,000 | G32: 48,000 | H32: 12,000 | I32: =D32*H32 -> 48,000
A33: 2 | B33: 桌子+桌布（4天） | C33: 签到区*2；按揭*8；审核*2；财务*4；复印1；合同打印*8；合同签署*5；复核*2 | D33: 32 | E33: 张 | F33: 90 | G33: 2,880 | H33: 90 | I33: =D33*H33 -> 2,880
A34: 3 | B34: 桌卡 | C34: 含A4珠光内页 | D34: 28 | E34: 个 | F34: 5 | G34: 140 | H34: 5 | I34: 140
A35: 4 | B35: 签约流程提示卡 | C35: A4白卡纸 | D35: 350 | E35: 张 | F35: 3 | G35: 1,050 | H35: 3 | I35: 1,050
A36: 5 | B36: 售后服务卡 | C36: A4白卡纸 | D36: 350 | E36: 张 | F36: 3 | G36: 1,050 | H36: 3 | I36: 1,050
A37: 6 | B37: 办理完成章 | D37: 30 | E37: 个 | F37: 16 | G37: 480 | H37: 16 | I37: 480
A38: 7 | B38: 与原件一致章 | D38: 20 | E38: 个 | F38: 13 | G38: 260 | H38: 13 | I38: 260
A39: 8 | B39: 全宗号章 | D39: 5 | E39: 个 | F39: 20 | G39: 100 | H39: 20 | I39: 100
A40: 9 | B40: 臂贴 | C40: 1-320；10cm | D40: 350 | E40: 张 | F40: 4 | G40: 1,400 | H40: 4 | I40: 1,400
A41: 10 | B41: 加厚，立屏展架+KT板 | C41: 签到区、按揭区、财务区、审核区、复印区、打印区、合同签署区、复核区、项目指引*2 | D41: 10 | E41: 套 | F41: 250 | G41: 2,500 | H41: 250 | I41: 2,500
A42: 11 | B42: 贵宾椅子（4天） | C42: 签到区*8；按揭*32；审核*8；财务*16；复印*2；合同打印*16；合同签署*20；复核*4；休息区*40；备10 | D42: 156 | E42: 张 | F42: 70 | G42: 10,920 | H42: 70 | I42: 10,920
A43: 12 | B43: 插线板 | C43: 公牛，6插三孔，3m | D43: 22 | E43: 个 | F43: 5 | G43: 110 | H43: 5 | I43: 110
A44: 13 | B44: 电脑租赁 | C44: I5 固态，安装2013以上版本office | D44: 24 | E44: 台 | F44: 50 | G44: 1,200 | H44: 50 | I44: 1,200
A45: 14 | B45: 打印机租赁 | D45: 4 | E45: 台 | F45: 500 | G45: 2,000 | H45: 500 | I45: 2,000
A46: 15 | B46: 湿巾 | C46: / | D46: 10 | E46: 包 | F46: 2 | G46: 20 | H46: 2 | I46: 20
A47: 16 | B47: 印泥 | D47: 10 | E47: 个 | F47: 5 | G47: 50 | H47: 5 | I47: 50
A48: 17 | B48: 一米线 | C48: / | D48: 20 | E48: 个 | F48: 30 | G48: 600 | H48: 30 | I48: 600
A49: 18 | B49: 计算器 | D49: 3 | E49: 个 | F49: 5 | G49: 15 | H49: 5 | I49: 15
A50: 19 | B50: 签约物料搭建与运输 | D50: 2 | E50: 项 | F50: 2,000 | G50: 4,000 | H50: 2,000 | I50: 4,000
A51: 20 | B51: 营销中心桌椅搬运 | D51: 2 | E51: 趟 | F51: 2,000 | G51: 4,000 | H51: 2,000 | I51: 4,000
A52: 小计： | G52: =SUM(G32:G51) -> 80,775 | I52: =SUM(I32:I51) -> 80,775
A53: 税率 | F53: 6% | G53: =G52*0.06 -> 4,847
A54: 合计 | G54: =G52+G53 -> 85,622
A55: 三、职工推介会
A56: 1 | B56: 酒店租赁 | C56: 融创乐园青花剧场 | D56: 1 | E56: 天 | F56: 20,000 | G56: =F56*D56 -> 20,000 | H56: 20,000 | I56: =D56*H56 -> 20,000
A57: 2 | B57: 签到桁架+单面黑白布 | C57: 3*5 | D57: 15 | E57: 平方 | F57: 65 | G57: 975 | H57: 65 | I57: =D57*H57 -> 975
A58: 3 | B58: 主题桁架 | C58: 3*5 | D58: 15 | E58: 平方 | F58: 65 | G58: 975 | H58: 65 | I58: 975
A59: 4 | B59: 签到桌 | C59: 含围裙桌布 | D59: 4 | E59: 张 | F59: 45 | G59: 180 | H59: 45 | I59: 180
A60: 5 | B60: 签到椅 | C60: 含椅套 | D60: 8 | E60: 个 | F60: 35 | G60: 280 | H60: 35 | I60: 280
A61: 6 | B61: 翻页笔 | D61: 1 | E61: 套 | F61: 200 | G61: 200 | H61: 200 | I61: 200
A62: 7 | B62: 麦克风 | D62: 4 | E62: 支 | F62: 50 | G62: 200 | H62: 50 | I62: 200
A63: 8 | B63: 演讲台 | D63: 1 | E63: 项 | F63: 500 | G63: 500 | H63: 500 | I63: 500
A64: 9 | B64: 演讲台桌花 | C64: 新鲜花艺 | D64: 1 | E64: 项 | F64: 300 | G64: 300 | H64: 350 | I64: 350
A65: 10 | B65: 立屏展架+KT板 | D65: 11 | E65: 套 | F65: 300 | G65: 3,300 | H65: 500 | I65: 5,500
A66: 11 | B66: 水笔 | D66: 900 | E66: 支 | F66: 2 | G66: 1,800 | H66: 2 | I66: 1,350
A67: 12 | B67: 口罩 | D67: 900 | E67: 个 | F67: 1 | G67: 900 | H67: 1 | I67: 900
A68: 13 | B68: 印泥 | D68: 20 | E68: 盒 | F68: 18 | G68: 360 | H68: 18 | I68: 360
A69: 14 | B69: 矿泉水 | D69: 2500 | E69: 瓶 | F69: 2 | G69: 5,000 | H69: 2 | I69: 5,000
A70: 15 | B70: 矿泉水 | D70: 480 | E70: 瓶 | F70: 2 | G70: 960 | H70: 2 | I70: 960
A71: 16 | B71: 冷餐 | C71: 糕点：（红丝绒慕斯 芒果慕斯 巧克力慕斯 抹茶慕斯 铜锣烧 彩针甜甜圈 巧克力豆曲奇饼）水果：（哈密瓜 圣女果 脐橙 凤梨）配置900份一次性餐盘，每场（上下午场）450份，两场900份。2名服务人员 | D71: 900 | E71: 份 | F71: 40 | G71: 36,000 | H71: 40 | I71: 36,000
A72: 17 | B72: 奶茶 | C72: 现场制作 | D72: 900 | E72: 杯 | F72: 15 | G72: 13,500 | H72: 15 | I72: 13,500
A73: 18 | B73: 冷餐桌 | D73: 12 | E73: 张 | F73: 45 | G73: 540 | H73: 45 | I73: 540
A74: 19 | B74: 电台主持人 | D74: 1 | E74: 人 | F74: 3,000 | G74: 3,000 | H74: 5,000 | I74: 5,000
A75: 20 | B75: 执行人员 | C75: 物料装袋、现场配合 | D75: 10 | E75: 人 | F75: 400 | G75: 4,000 | H75: 400 | I75: 4,000
A76: 21 | B76: 安保 | C76: 含服装、安全方案及场地审批 | D76: 13 | E76: 人 | F76: 300 | G76: 3,900 | H76: 300 | I76: 3,900
A77: 22 | B77: 印刷类采购 | D77: 1 | E77: 项 | F77: 16,500 | G77: =F77 -> 16,500 | H77: 16,860 | I77: 16,860
A78: 23 | B78: 人员服务费 | D78: 30 | E78: 工日 | G78: 10,000 | I78: 10,000
A79: 24 | B79: 物料运输、布场搭建 | D79: 1 | E79: 项 | F79: 2,500 | G79: =F79*D79 -> 2,500 | H79: 2,500 | I79: 2,500
A80: 25 | B80: 管理费 | C80: 总金额的2% | D80: 1 | E80: 项 | G80: =SUM(G56:G79)*0.2 -> 25,174 | I80: =SUM(I56:I79)*0.2 -> 26,006
A81: 小计： | G81: =SUM(G56:G80) -> 151,044 | I81: =SUM(I56:I80) -> 156,036
A82: 税率 | F82: 6% | G82: =G81*0.06 -> 9,063
A83: 合计 | G83: =G81+G82 -> 160,107
A84: 总计 | G84: =G83+G54+G29 -> 336,162 | I84: =I81+I52 -> 236,811
A85: 备注：1、单价为综合单价，包含人工、材料、机械、管理费、利润、税金等一切费用。
A86: 2、数量为暂估的数量，最终以经过业甲方确认的实际数量进行结算。
B87: 编制人： | D87: 审核人：
